bitfinex-derivatives/quotes_BNBF0:USTF0_20250709
["timestamp","ask_amount","ask_price","bid_price","bid_amount"]
[1752021238729,1.463166,659.96,659.58,2.097]
[1752021238924,1.463166,659.95,659.58,2.097]
[1752021239221,1.463166,659.94,659.58,2.097]
[1752021239424,1.463166,659.93,659.58,2.097]
[1752021239623,1.463166,659.92,659.58,2.097]
[1752021239822,1.463166,659.91,659.58,2.097]
[1752021240122,1.463166,659.9,659.58,2.097]
[1752021240325,1.463166,659.89,659.58,2.097]
[1752021240523,1.70224701,660.16,659.58,2.097]
[1752021240724,1.46376082,660.15,659.58,2.097]
[1752021240926,1.46376082,660.14,659.58,2.097]
[1752021241225,1.46376082,660.13,659.58,2.097]
[1752021241524,1.46376082,660.12,659.58,2.097]
[1752021241827,1.46376082,660.11,659.58,2.097]
[1752021242027,1.46376082,660.1,659.58,2.097]
[1752021242223,1.46376082,660.09,659.58,2.097]
[1752021242526,1.46376082,660.08,659.58,2.097]
[1752021242726,1.46376082,660.07,659.58,2.097]
[1752021243026,1.46376082,660.06,659.58,2.097]
[1752021243225,1.46376082,660.05,659.58,2.097]
[1752021243425,1.46376082,660.04,659.58,2.097]
[1752021243623,1.46376082,660.03,659.58,2.097]
[1752021243830,1.46376082,660.02,659.58,2.097]
[1752021244029,1.46376082,660.01,659.58,2.097]
[1752021244227,1.46376082,660.0,659.58,2.097]
[1752021244424,2.26133898,660.37,659.58,2.097]
[1752021244425,1.46376082,659.99,659.58,2.097]
[1752021244723,1.46376082,659.98,659.58,2.097]
[1752021244928,1.46376082,659.97,659.58,2.097]
[1752021245223,1.46376082,659.96,659.58,2.097]
[1752021245422,1.46376082,659.95,659.58,2.097]
[1752021245627,1.70224701,660.22,659.58,2.097]
[1752021245832,1.46286366,660.21,659.58,2.097]
[1752021246032,3.16511067,660.2,659.58,2.097]
[1752021246228,1.70224701,660.18,659.58,2.097]
[1752021246434,1.46286366,660.17,659.58,2.097]
[1752021246629,1.46286366,660.16,659.58,2.097]
[1752021246930,1.46286366,660.15,659.58,2.097]
[1752021247130,1.46286366,660.14,659.58,2.097]
[1752021247333,1.46286366,660.13,659.58,2.097]
[1752021247529,1.46286366,660.12,659.58,2.097]
[1752021247733,1.46286366,660.11,659.58,2.097]
[1752021248033,1.46286366,660.1,659.58,2.097]
[1752021248234,1.46286366,660.09,659.58,2.097]
[1752021248530,1.46286366,660.08,659.58,2.097]
[1752021248730,1.46286366,660.07,659.58,2.097]
[1752021248929,1.46286366,660.06,659.58,2.097]
[1752021249235,1.46286366,660.05,659.58,2.097]
[1752021249531,1.46286366,660.04,659.58,2.097]
[1752021249834,1.46286366,660.03,659.58,2.097]
[1752021250130,1.46286366,660.02,659.58,2.097]
[1752021250329,1.70224701,660.19,659.58,2.097]
[1752021250330,1.46286366,660.01,659.58,2.097]
[1752021250630,1.46286366,660.0,659.58,2.097]
[1752021250833,1.70224701,660.19,659.58,2.097]
[1752021251033,1.462089,660.18,659.58,2.097]
[1752021251230,1.462089,660.17,659.58,2.097]
[1752021251430,1.462089,660.16,659.58,2.097]
[1752021251630,1.462089,660.15,659.58,2.097]
[1752021251833,1.462089,660.14,659.58,2.097]
[1752021252033,1.462089,660.13,659.58,2.097]
[1752021252234,1.462089,660.12,659.58,2.097]
[1752021252431,1.462089,660.11,659.58,2.097]
[1752021252635,1.462089,660.1,659.58,2.097]
[1752021252935,1.462089,660.09,659.58,2.097]
[1752021253132,1.462089,660.08,659.58,2.097]
[1752021253334,1.462089,660.07,659.58,2.097]
[1752021253533,1.462089,660.06,659.58,2.097]
[1752021253736,1.462089,660.05,659.58,2.097]
[1752021253937,1.462089,660.04,659.58,2.097]
[1752021254139,1.70224701,660.23,659.58,2.097]
[1752021254337,1.46177159,660.22,659.58,2.097]
[1752021254636,1.46177159,660.21,659.58,2.097]
[1752021254936,1.46177159,660.2,659.58,2.097]
[1752021255141,1.46177159,660.19,659.58,2.097]
[1752021255342,1.46177159,660.18,659.58,2.097]
[1752021255638,1.46177159,660.17,659.58,2.097]
[1752021255837,1.46177159,660.16,659.58,2.097]
[1752021256036,1.46177159,660.15,659.58,2.097]
[1752021256236,1.46177159,660.14,659.58,2.097]
[1752021256540,1.46177159,660.13,659.58,2.097]
[1752021256740,1.46177159,660.12,659.58,2.097]
[1752021256940,1.46177159,660.11,659.58,2.097]
[1752021257140,1.46177159,660.1,659.58,2.097]
[1752021257338,1.46177159,660.09,659.58,2.097]
[1752021257541,1.46177159,660.08,659.58,2.097]
[1752021257838,1.46177159,660.07,659.58,2.097]
[1752021258036,1.46177159,660.06,659.58,2.097]
[1752021258340,1.46177159,660.05,659.58,2.097]
[1752021258541,1.46177159,660.04,659.58,2.097]
[1752021258739,1.46177159,660.03,659.58,2.097]
[1752021258938,1.46177159,660.02,659.58,2.097]
[1752021259235,1.46177159,660.01,659.58,2.097]
[1752021259440,1.46177159,660.0,659.58,2.097]
[1752021259638,1.46177159,659.99,659.58,2.097]
[1752021259843,1.46177159,659.98,659.58,2.097]
[1752021260142,1.46177159,659.97,659.58,2.097]
[1752021260438,1.70224701,660.34,659.58,2.097]
[1752021260637,1.46135604,660.33,659.58,2.097]
[1752021260841,1.46135604,660.32,659.58,2.097]
[1752021261042,1.46135604,660.31,659.58,2.097]
[1752021261338,1.46135604,660.3,659.58,2.097]
[1752021261542,1.46135604,660.29,659.58,2.097]
[1752021261842,1.46135604,660.28,659.58,2.097]
[1752021262142,1.46135604,660.27,659.58,2.097]
[1752021262340,1.46135604,660.26,659.58,2.097]
[1752021262542,1.46135604,660.25,659.58,2.097]
[1752021262739,1.46135604,660.24,659.58,2.097]
[1752021263039,1.46135604,660.23,659.58,2.097]
[1752021263238,1.46135604,660.22,659.58,2.097]
[1752021263441,1.46135604,660.21,659.58,2.097]
[1752021263640,1.46135604,660.2,659.58,2.097]
[1752021263843,1.46135604,660.19,659.58,2.097]
[1752021264042,1.46135604,660.18,659.58,2.097]
[1752021264343,1.46135604,660.17,659.58,2.097]
[1752021264541,1.46135604,660.16,659.58,2.097]
[1752021264742,1.46135604,660.15,659.58,2.097]
[1752021265040,1.46135604,660.14,659.58,2.097]
[1752021265240,1.70224701,660.27,659.58,2.097]
[1752021265241,1.46135604,660.13,659.58,2.097]
[1752021265439,1.46135604,660.12,659.58,2.097]
[1752021265640,1.46135604,660.11,659.58,2.097]
[1752021265845,1.46135604,660.1,659.58,2.097]
[1752021266042,1.46135604,660.09,659.58,2.097]
[1752021266245,1.46135604,660.08,659.58,2.097]
[1752021266440,1.46135604,660.07,659.58,2.097]
[1752021266743,1.46135604,660.06,659.58,2.097]
[1752021266943,1.46135604,660.05,659.58,2.097]
[1752021267144,1.46135604,660.04,659.58,2.097]
[1752021267341,1.46135604,660.03,659.58,2.097]
[1752021267544,1.46135604,660.02,659.58,2.097]
[1752021267743,1.46135604,660.01,659.58,2.097]
[1752021267941,1.46135604,660.0,659.58,2.097]
[1752021268145,1.46135604,659.99,659.58,2.097]
[1752021268342,1.46135604,659.98,659.58,2.097]
[1752021268545,1.46135604,659.97,659.58,2.097]
[1752021268746,1.70224701,660.26,659.58,2.097]
[1752021269046,1.46117384,660.25,659.58,2.097]
[1752021269242,1.46117384,660.24,659.58,2.097]
[1752021269441,1.70224701,660.22,659.58,2.097]
[1752021269644,1.46117384,660.21,659.58,2.097]
[1752021269843,1.46117384,660.2,659.58,2.097]
[1752021270044,1.46117384,660.19,659.58,2.097]
[1752021270243,1.46117384,660.18,659.58,2.097]
[1752021270448,1.70224701,660.22,659.58,2.097]
[1752021270449,1.46117384,660.17,659.58,2.097]
[1752021270649,1.46117384,660.16,659.58,2.097]
[1752021270845,1.46117384,660.15,659.58,2.097]
[1752021271044,1.46117384,660.14,659.58,2.097]
[1752021271243,1.46117384,660.13,659.58,2.097]
[1752021271445,1.46117384,660.12,659.58,2.097]
[1752021271644,1.46117384,660.11,659.58,2.097]
[1752021271842,1.46117384,660.1,659.58,2.097]
[1752021272046,1.46117384,660.09,659.58,2.097]
[1752021272242,1.46117384,660.08,659.58,2.097]
[1752021272446,1.46117384,660.07,659.58,2.097]
[1752021272644,1.46117384,660.06,659.58,2.097]
[1752021272847,1.46117384,660.05,659.58,2.097]
[1752021273046,1.46117384,660.04,659.58,2.097]
[1752021273247,1.46117384,660.03,659.58,2.097]
[1752021273548,1.46117384,660.02,659.58,2.097]
[1752021273847,1.46117384,660.01,659.58,2.097]
[1752021274047,1.46117384,660.0,659.58,2.097]
[1752021274250,1.46117384,659.99,659.58,2.097]
[1752021274455,1.70224701,660.24,659.58,2.097]
[1752021274456,1.46117384,659.98,659.58,2.097]
[1752021274650,1.46117384,659.97,659.58,2.097]
[1752021274849,1.70224701,660.24,659.58,2.097]
[1752021275050,1.46144313,660.23,659.58,2.097]
[1752021275349,1.46144313,660.22,659.58,2.097]
[1752021275549,1.70224701,660.24,659.58,2.097]
[1752021275550,1.46144313,660.21,659.58,2.097]
[1752021275853,1.46144313,660.2,659.58,2.097]
[1752021276050,1.46144313,660.19,659.58,2.097]
[1752021276251,1.46144313,660.18,659.58,2.097]
[1752021276453,1.46144313,660.17,659.58,2.097]
[1752021276655,1.46144313,660.16,659.58,2.097]
[1752021276856,1.46157866,660.15,659.58,2.097]
[1752021277051,1.46157866,660.14,659.58,2.097]
[1752021277252,1.46157866,660.13,659.58,2.097]
[1752021277451,1.46157866,660.12,659.58,2.097]
[1752021277655,1.46157866,660.11,659.58,2.097]
[1752021277860,1.46157866,660.1,659.58,2.097]
[1752021278060,1.46157866,660.09,659.58,2.097]
[1752021278355,1.46157866,660.08,659.58,2.097]
[1752021278556,1.46157866,660.07,659.58,2.097]
[1752021278759,1.46157866,660.06,659.58,2.097]
[1752021278961,1.46157866,660.05,659.58,2.097]
[1752021279157,1.46157866,660.04,659.58,2.097]
[1752021279360,1.46157866,660.03,659.58,2.097]
[1752021279559,1.46157866,660.02,659.58,2.097]
[1752021279762,1.46157866,660.01,659.58,2.097]
[1752021279964,1.46157866,660.0,659.58,2.097]
[1752021280159,1.46157866,659.99,659.58,2.097]
[1752021280360,1.46157866,659.98,659.58,2.097]
[1752021280560,1.69684664,660.21,659.58,2.097]
[1752021280764,1.69684664,660.18,659.58,2.097]
[1752021280965,1.4615849,660.17,659.58,2.097]
[1752021281263,1.4615849,660.16,659.58,2.097]
[1752021281564,1.4615849,660.15,659.58,2.097]
[1752021281864,1.4615849,660.14,659.58,2.097]
[1752021282161,1.4615849,660.13,659.58,2.097]
[1752021282360,1.4615849,660.12,659.58,2.097]
[1752021282564,1.4615849,660.11,659.58,2.097]
[1752021282859,1.4615849,660.1,659.58,2.097]
[1752021283163,1.4615849,660.09,659.58,2.097]
[1752021283363,1.4615849,660.08,659.58,2.097]
[1752021283561,1.4615849,660.07,659.58,2.097]
[1752021283867,1.4615849,660.06,659.58,2.097]
[1752021284163,1.4615849,660.05,659.58,2.097]
[1752021284460,1.4615849,660.04,659.58,2.097]
[1752021284662,1.4615849,660.03,659.58,2.097]
[1752021284867,1.4615849,660.02,659.58,2.097]
[1752021285063,1.4615849,660.01,659.58,2.097]
[1752021285263,1.4615849,660.0,659.58,2.097]
[1752021285462,1.69684664,660.21,659.58,2.097]
[1752021285666,1.46221241,660.2,659.58,2.097]
[1752021285961,1.46221241,660.19,659.58,2.097]
[1752021286167,1.46221241,660.18,659.58,2.097]
[1752021286367,1.46221241,660.17,659.58,2.097]
[1752021286566,1.46221241,660.16,659.58,2.097]
[1752021286764,1.46221241,660.15,659.58,2.097]
[1752021286964,1.46221241,660.14,659.58,2.097]
[1752021287170,1.46221241,660.13,659.57,0.2636893]
[1752021287469,1.46221241,660.12,659.57,0.2636893]
[1752021287670,1.46221241,660.11,659.57,0.2636893]
[1752021287871,1.46221241,660.1,659.57,0.2636893]
[1752021288067,1.46221241,660.09,659.57,0.2636893]
[1752021288371,1.46221241,660.08,659.57,0.2636893]
[1752021288572,1.46221241,660.07,659.57,0.2636893]
[1752021288768,1.46221241,660.06,659.57,0.2636893]
[1752021288969,1.46221241,660.05,659.57,0.2636893]
[1752021289173,1.46221241,660.04,659.57,0.2636893]
[1752021289375,1.46221241,660.03,659.57,0.2636893]
[1752021289569,1.46221241,660.02,659.57,0.2636893]
[1752021289772,1.46221241,660.01,659.57,0.2636893]
[1752021289971,1.46221241,660.0,659.57,0.2636893]
[1752021290269,1.46221241,659.99,659.57,0.2636893]
[1752021290573,1.46221241,659.98,659.58,2.286]
[1752021290771,1.46221241,659.97,659.58,2.286]
[1752021290969,1.69684664,660.18,659.58,2.286]
[1752021291173,3.16010269,660.17,659.58,2.286]
[1752021291371,1.46325605,660.16,659.58,2.286]
[1752021291571,1.46325605,660.15,659.58,2.286]
[1752021291770,1.46325605,660.14,659.58,2.286]
[1752021292075,1.46325605,660.13,659.58,2.286]
[1752021292374,1.46325605,660.12,659.6,3.39065831]
[1752021292577,1.46325605,660.11,659.6,3.39065831]
[1752021292775,1.46325605,660.1,659.6,3.39065831]
[1752021292974,1.46325605,660.09,659.6,3.39065831]
[1752021293178,1.46325605,660.08,659.6,3.39065831]
[1752021293475,1.46325605,660.07,659.61,3.39065831]
[1752021293674,1.46325605,660.06,659.61,3.39065831]
[1752021293878,1.46325605,660.05,659.61,3.39065831]
[1752021294075,1.46325605,660.04,659.61,3.39065831]
[1752021294279,1.46325605,660.03,659.61,3.39065831]
[1752021294474,1.46325605,660.02,659.61,3.39065831]
[1752021294676,1.46325605,660.01,659.61,3.39065831]
[1752021294878,1.69684664,660.2,659.61,3.39065831]
[1752021295080,1.46372501,660.19,659.61,3.39065831]
[1752021295276,1.46372501,660.18,659.61,3.39065831]
[1752021295480,1.46372501,660.17,659.61,3.39065831]
[1752021295680,1.46372501,660.16,659.61,3.39065831]
[1752021295881,1.46372501,660.15,659.61,3.39065831]
[1752021296080,1.46372501,660.14,659.61,3.39065831]
[1752021296282,1.46372501,660.13,659.62,3.39065831]
[1752021296478,1.46372501,660.12,659.62,3.39065831]
[1752021296778,1.46372501,660.11,659.62,3.39065831]
[1752021296978,1.46372501,660.1,659.6,3.39065831]
[1752021297177,1.46372501,660.09,659.62,3.39065831]
[1752021297382,1.46372501,660.08,659.62,3.39065831]
[1752021297582,1.46372501,660.07,659.62,3.39065831]
[1752021297778,1.69684664,660.19,659.62,3.39065831]
[1752021297779,1.46372501,660.06,659.62,3.39065831]
[1752021297980,1.46372501,660.05,659.62,3.39065831]
[1752021298179,1.46372501,660.04,659.62,3.39065831]
[1752021298383,1.46372501,660.03,659.63,3.39065831]
[1752021298581,1.46372501,660.02,659.63,3.39065831]
[1752021298779,1.46372501,660.02,659.58,2.286]
[1752021298780,1.46372501,660.01,659.6,3.39065831]
[1752021298981,1.46372501,660.0,659.6,3.39065831]
[1752021299181,1.46372501,659.99,659.6,3.39065831]
[1752021299485,1.46372501,659.98,659.58,2.286]
[1752021299781,1.46372501,659.97,659.58,2.286]
[1752021299986,1.69684664,660.2,659.58,2.286]
[1752021300186,1.46505316,660.19,659.58,2.286]
[1752021300485,1.69684664,660.17,659.58,2.286]
[1752021300683,1.46505316,660.16,659.58,2.286]
[1752021300885,1.46505316,660.15,659.58,2.286]
[1752021301083,1.46505316,660.14,659.58,2.286]
[1752021301385,1.46505316,660.13,659.58,2.286]
[1752021301585,1.46505316,660.12,659.58,2.286]
[1752021301785,0.2636883,660.48,659.58,2.286]
[1752021301786,1.46505316,660.11,659.58,2.286]
[1752021301986,1.46505316,660.1,659.58,2.286]
[1752021302186,1.46505316,660.09,659.58,2.286]
[1752021302512,1.46505316,660.08,659.58,2.286]
[1752021302783,1.46505316,660.07,659.58,2.286]
[1752021302987,1.46505316,660.06,659.58,2.286]
[1752021303282,1.46505316,660.05,659.58,2.286]
[1752021303484,1.46505316,660.04,659.58,2.286]
[1752021303684,1.46505316,660.03,659.58,2.286]
[1752021303885,1.46505316,660.02,659.58,2.286]
[1752021304083,1.46505316,660.01,659.58,2.286]
[1752021304286,1.46505316,660.0,659.58,2.286]
[1752021304487,1.46505316,659.99,659.58,2.286]
[1752021304787,1.46505316,659.98,659.58,2.286]
[1752021304983,1.46505316,659.97,659.58,2.286]
[1752021305184,1.46505316,659.96,659.58,2.286]
[1752021305387,1.46505316,659.95,659.58,2.286]
[1752021305585,1.46505316,659.94,659.58,2.286]
[1752021305785,1.46505316,659.93,659.58,2.286]
[1752021306085,1.46505316,659.92,659.58,2.286]
[1752021306290,1.46505316,659.91,659.58,2.286]
[1752021306589,1.46505316,659.9,659.58,2.286]
[1752021306788,1.46505316,659.89,659.58,2.286]
[1752021306988,1.69684664,660.1,659.58,2.286]
[1752021306989,1.46505316,659.88,659.58,2.286]
[1752021307293,1.46505316,659.87,659.58,2.286]
[1752021307487,1.46505316,659.86,659.58,2.286]
[1752021307692,1.69684664,660.11,659.58,2.286]
[1752021307894,1.4635673,660.1,659.58,2.286]
[1752021308093,1.4635673,660.09,659.58,2.286]
[1752021308292,1.4635673,660.08,659.58,2.286]
[1752021308492,1.4635673,660.07,659.58,2.286]
[1752021308693,1.4635673,660.06,659.58,2.286]
[1752021308893,1.4635673,660.05,659.58,2.286]
[1752021309095,1.4635673,660.04,659.58,2.286]
[1752021309290,1.4635673,660.03,659.58,2.286]
[1752021309489,1.4635673,660.02,659.58,2.286]
[1752021309794,1.4635673,660.01,659.58,2.286]
[1752021309994,1.4635673,660.0,659.58,2.286]
[1752021310195,1.4635673,659.99,659.58,2.286]
[1752021310494,1.4635673,659.98,659.58,2.286]
[1752021310693,1.4635673,659.97,659.58,2.286]
[1752021310893,1.4635673,659.96,659.58,2.286]
[1752021311090,1.4635673,659.95,659.58,2.286]
[1752021311290,1.4635673,659.94,659.58,2.286]
[1752021311494,1.4635673,659.93,659.58,2.286]
[1752021311694,1.4635673,659.92,659.58,2.286]
[1752021311993,1.4635673,659.91,659.58,2.286]
[1752021312189,1.69684664,660.08,659.58,2.286]
[1752021312394,1.46307384,660.07,659.58,2.286]
[1752021312595,1.46307384,660.06,659.58,2.286]
[1752021312795,1.46307384,660.05,659.58,2.286]
[1752021313095,1.46307384,660.04,659.58,2.286]
[1752021313390,1.46307384,660.03,659.58,2.286]
[1752021313591,1.46307384,660.02,659.58,2.286]
[1752021313791,1.46307384,660.01,659.58,2.286]
[1752021313989,1.46307384,660.0,659.58,2.286]
[1752021314193,1.46307384,659.99,659.58,2.286]
[1752021314396,1.46307384,659.98,659.58,2.286]
[1752021314589,1.46307384,659.97,659.58,2.286]
[1752021314789,1.46307384,659.96,659.58,2.286]
[1752021314991,1.46307384,659.95,659.58,2.286]
[1752021315191,1.46307384,659.94,659.58,2.286]
[1752021315391,1.46307384,659.93,659.58,2.286]
[1752021315694,1.46307384,659.92,659.58,2.286]
[1752021315891,1.69684664,660.11,659.58,2.286]
[1752021316190,1.46286842,660.1,659.58,2.286]
[1752021316390,1.46286842,660.09,659.58,2.286]
[1752021316595,1.46286842,660.08,659.58,2.286]
[1752021316795,1.46286842,660.07,659.58,2.286]
[1752021317094,1.46286842,660.06,659.58,2.286]
[1752021317294,1.46286842,660.05,659.58,2.286]
[1752021317495,1.46286842,660.04,659.58,2.286]
[1752021317794,1.46286842,660.03,659.58,2.286]
[1752021317992,1.46286842,660.02,659.58,2.286]
[1752021318190,1.46286842,660.01,659.58,2.286]
[1752021318390,1.46286842,660.0,659.58,2.286]
[1752021318590,1.69684664,660.12,659.57,0.2636893]
[1752021318591,1.46286842,659.99,659.57,0.2636893]
[1752021318790,1.46286842,659.98,659.57,0.2636893]
[1752021318994,1.46286842,659.97,659.57,0.2636893]
[1752021319191,1.46286842,659.96,659.57,0.2636893]
[1752021319396,1.46286842,659.95,659.57,0.2636893]
[1752021319696,1.46286842,659.94,659.57,0.2636893]
[1752021319894,1.46286842,659.93,659.57,0.2636893]
[1752021320191,1.46286842,659.92,659.57,0.2636893]
[1752021320494,1.69684664,660.12,659.57,0.2636893]
[1752021320690,1.46263646,660.11,659.57,0.2636893]
[1752021320892,1.46263646,660.1,659.57,0.2636893]
[1752021321191,1.46263646,660.09,659.57,0.2636893]
[1752021321390,1.46263646,660.08,659.57,0.2636893]
[1752021321591,1.46263646,660.07,659.57,0.2636893]
[1752021321796,1.46263646,660.06,659.57,0.2636893]
[1752021321994,1.46263646,660.05,659.57,0.2636893]
[1752021322194,1.46263646,660.04,659.57,0.2636893]
[1752021322489,1.46263646,660.03,659.58,2.037]
[1752021322689,1.46263646,660.02,659.58,2.037]
[1752021322894,1.46263646,660.01,659.58,2.037]
[1752021323091,1.46263646,660.0,659.58,2.037]
[1752021323394,1.46263646,659.99,659.58,2.037]
[1752021323593,1.46263646,659.98,659.58,2.037]
[1752021323795,1.46263646,659.97,659.58,2.037]
[1752021324095,1.46263646,659.96,659.58,2.037]
[1752021324392,1.46263646,659.95,659.58,2.037]
[1752021324591,1.46263646,659.94,659.58,2.037]
[1752021324792,1.46263646,659.93,659.58,2.037]
[1752021324994,1.69684664,660.12,659.58,2.037]
[1752021325194,1.46250544,660.11,659.58,2.037]
[1752021325393,1.46250544,660.1,659.58,2.037]
[1752021325596,1.46250544,660.09,659.58,2.037]
[1752021325794,1.46250544,660.08,659.58,2.037]
[1752021325999,1.46250544,660.07,659.58,2.037]
[1752021326296,1.46250544,660.06,659.58,2.037]
[1752021326497,1.46250544,660.05,659.58,2.037]
[1752021326695,1.46250544,660.04,659.58,2.037]
[1752021326900,1.46250544,660.03,659.58,2.037]
[1752021327199,1.46250544,660.02,659.58,2.037]
[1752021327404,1.46250544,660.01,659.58,2.037]
[1752021327603,1.46250544,660.0,659.58,2.037]
[1752021327905,1.46250544,659.99,659.58,2.037]
[1752021328199,1.69684664,660.12,659.58,2.037]
[1752021328200,1.46250544,659.98,659.58,2.037]
[1752021328399,1.46250544,659.97,659.58,2.037]
[1752021328701,1.46250544,659.96,659.58,2.037]
[1752021328903,1.46250544,659.95,659.58,2.037]
[1752021329200,1.46250544,659.94,659.58,2.037]
[1752021329407,1.46250544,659.93,659.58,2.037]
[1752021329600,1.69684664,660.13,659.58,2.037]
[1752021329804,1.46247515,660.12,659.58,2.037]
[1752021330100,1.46247515,660.11,659.6,0.26366233]
[1752021330403,1.46247515,660.1,659.6,0.26366233]
[1752021330603,1.46247515,660.09,659.6,0.26366233]
[1752021330902,1.46247515,660.08,659.6,0.26366233]
[1752021331105,1.46247515,660.07,659.6,0.26366233]
[1752021331300,1.46247515,660.06,659.6,0.26366233]
[1752021331498,1.46247515,660.05,659.6,0.26366233]
[1752021331702,1.46247515,660.04,659.6,0.26366233]
[1752021331902,1.46247515,660.03,659.6,0.26366233]
[1752021332101,1.46247515,660.02,659.6,0.26366233]
[1752021332304,1.46247515,660.01,659.6,0.26366233]
[1752021332601,1.46247515,660.0,659.6,0.26366233]
[1752021332801,1.46247515,659.99,659.6,0.26366233]
[1752021333004,1.46247515,659.98,659.6,0.26366233]
[1752021333208,1.46247515,659.97,659.6,0.26366233]
[1752021333405,1.46247515,659.96,659.6,0.26366233]
[1752021333602,1.69684664,660.12,659.6,0.26366233]
[1752021333603,1.46247515,659.95,659.6,0.26366233]
[1752021333907,1.46247515,659.94,659.6,0.26366233]
[1752021334105,1.46247515,659.93,659.6,0.26366233]
[1752021334303,1.69684664,660.12,659.6,0.26366233]
[1752021334506,1.46250975,660.11,659.6,0.26366233]
[1752021334707,1.46250975,660.1,659.6,0.26366233]
[1752021334906,1.46250975,660.09,659.6,0.26366233]
[1752021335207,1.46250975,660.08,659.6,0.26366233]
[1752021335506,1.46250975,660.07,659.6,0.26366233]
[1752021335806,1.46250975,660.06,659.6,0.26366233]
[1752021336003,1.46250975,660.05,659.6,0.26366233]
[1752021336202,1.46250975,660.04,659.6,0.26366233]
[1752021336404,1.46250975,660.03,659.6,0.26366233]
[1752021336705,1.46250975,660.02,659.6,0.26366233]
[1752021336907,1.46250975,660.01,659.6,0.26366233]
[1752021337100,1.46250975,660.0,659.6,0.26366233]
[1752021337406,1.46250975,659.99,659.6,0.26366233]
[1752021337708,1.69684664,660.12,659.6,0.26366233]
[1752021337709,1.46250975,659.98,659.6,0.26366233]
[1752021338004,1.46250975,659.97,659.6,0.26366233]
[1752021338206,1.46250975,659.96,659.6,0.26366233]
[1752021338407,1.46250975,659.95,659.6,0.26366233]
[1752021338607,1.46250975,659.94,659.6,0.26366233]
[1752021338908,1.46250975,659.93,659.6,0.26366233]
[1752021339206,1.69684664,660.12,659.6,0.26366233]
[1752021339404,1.4626226,660.11,659.6,0.26366233]
[1752021339606,1.69684664,660.12,659.6,0.26366233]
[1752021339607,1.4626226,660.1,659.6,0.26366233]
[1752021339808,1.4626226,660.09,659.6,0.26366233]
[1752021340010,1.4626226,660.08,659.6,0.26366233]
[1752021340210,1.4626226,660.07,659.6,0.26366233]
[1752021340511,1.4626226,660.06,659.6,0.26366233]
[1752021340710,1.4626226,660.05,659.6,0.26366233]
[1752021340906,1.4626226,660.04,659.6,0.26366233]
[1752021341111,1.4626226,660.03,659.6,0.26366233]
[1752021341410,1.4626226,660.02,659.6,0.26366233]
[1752021341612,1.4626226,660.01,659.6,0.26366233]
[1752021341812,1.4626226,660.0,659.6,0.26366233]
[1752021342007,1.4626226,659.99,659.6,0.26366233]
[1752021342206,1.4626226,659.98,659.6,0.26366233]
[1752021342507,1.4626226,659.97,659.6,0.26366233]
[1752021342707,1.69684664,660.16,659.6,0.26366233]
[1752021342911,1.46273295,660.15,659.6,0.26366233]
[1752021343111,1.46273295,660.14,659.6,0.26366233]
[1752021343308,1.46273295,660.13,659.6,0.26366233]
[1752021343507,1.46273295,660.12,659.6,0.26366233]
[1752021343711,1.46273295,660.11,659.6,0.26366233]
[1752021344007,1.46273295,660.1,659.6,0.26366233]
[1752021344210,1.46273295,660.09,659.6,0.26366233]
[1752021344408,1.46273295,660.08,659.6,0.26366233]
[1752021344609,1.46273295,660.07,659.6,0.26366233]
[1752021344813,1.46273295,660.06,659.6,0.26366233]
[1752021345113,1.46273295,660.05,659.6,0.26366233]
[1752021345313,1.46273295,660.04,659.6,0.26366233]
[1752021345511,1.46273295,660.03,659.6,0.26366233]
[1752021345710,1.46273295,660.02,659.6,0.26366233]
[1752021345912,1.46273295,660.01,659.6,0.26366233]
[1752021346210,1.46273295,660.0,659.6,0.26366233]
[1752021346410,1.46273295,659.99,659.6,0.26366233]
[1752021346610,1.46273295,659.98,659.6,0.26366233]
[1752021346914,1.46273295,659.97,659.6,0.26366233]